bitfinex-derivatives/quotes_BNBF0:USTF0_20250331
["timestamp","ask_amount","ask_price","bid_price","bid_amount"]
[1743461622524,0.30397032,605.3,604.18,1.84478765]
[1743461622726,0.28779715,605.01,604.19,0.33102169]
[1743461623026,1.08856743,605.65,604.19,0.33102169]
[1743461623027,0.30397032,605.0,604.19,0.33102169]
[1743461623323,0.30397032,604.99,604.19,0.33102169]
[1743461623518,0.30397032,605.0,604.19,0.33102169]
[1743461623719,0.30397032,604.99,604.19,0.33102169]
[1743461623923,0.30397032,604.98,604.19,0.33102169]
[1743461624121,0.30397032,605.0,604.19,0.33102169]
[1743461624325,0.30397032,604.99,604.19,0.33102169]
[1743461624524,0.28782929,605.01,604.19,0.33102169]
[1743461624725,0.30397331,605.0,604.19,0.33102169]
[1743461625624,0.30397331,604.99,604.19,0.33102169]
[1743461625823,0.30397331,604.98,604.19,0.33102169]
[1743461626024,0.30397331,604.97,604.19,0.33102169]
[1743461626225,0.30397331,605.0,604.19,0.33102169]
[1743461626425,0.28784952,605.01,604.19,0.33102169]
[1743461626622,0.30397314,605.0,604.19,0.33102169]
[1743461628126,0.30397235,604.99,604.19,0.33102169]
[1743461628430,0.30397235,604.98,604.19,0.33102169]
[1743461628629,2.51031067,605.51,604.19,0.33102169]
[1743461628929,0.28779596,605.01,604.19,0.33102169]
[1743461629123,1.08856743,605.62,604.19,0.33102169]
[1743461629124,0.30397028,605.0,604.19,0.33102169]
[1743461629324,0.30397028,604.99,604.19,0.33102169]
[1743461629528,0.28779477,605.01,604.19,0.33102169]
[1743461629829,0.30397028,605.0,604.19,0.33102169]
[1743461631626,0.30397028,604.99,604.19,0.33102169]
[1743461631830,0.28785071,605.01,604.19,0.33102169]
[1743461632031,0.30397028,605.0,604.19,0.33102169]
[1743461634528,0.30397028,604.99,604.19,0.33102169]
[1743461634836,0.30397028,604.98,604.19,0.33102169]
[1743461635030,0.28779834,605.01,604.19,0.33102169]
[1743461635231,0.30396786,605.0,604.19,0.33102169]
[1743461636236,0.28779834,605.01,604.19,0.33102169]
[1743461636537,0.30396659,605.0,604.19,0.33102169]
[1743461637438,0.30396659,605.0,604.2,1.84478765]
[1743461637638,0.30396659,605.0,604.21,0.33101074]
[1743461639938,0.28779834,605.01,604.21,0.33101074]
[1743461640335,0.905,605.3,604.21,0.33101074]
[1743461640540,0.30395731,605.29,604.21,0.33101074]
[1743461640735,0.28780191,605.01,604.21,0.33101074]
[1743461640933,0.905,605.3,604.21,0.33101074]
[1743461641135,0.30395563,605.29,604.21,0.33101074]
[1743461641340,0.28779953,605.01,604.21,0.33101074]
[1743461641541,0.905,605.3,604.21,0.33101074]
[1743461641840,0.28779596,605.01,604.21,0.33101074]
[1743461642241,0.905,605.3,604.21,0.33101074]
[1743461642433,0.2877912,605.01,604.21,0.33101074]
[1743461642837,0.905,605.3,604.21,0.33101074]
[1743461643037,0.28778763,605.01,604.21,0.33101074]
[1743461643442,0.905,605.3,604.21,0.33101074]
[1743461643641,0.28781381,605.01,604.21,0.33101074]
[1743461644035,0.905,605.3,604.21,0.33101074]
[1743461644240,0.287815,605.01,604.21,0.33101074]
[1743461644737,0.905,605.3,604.21,0.33101074]
[1743461645042,0.287815,605.01,604.21,0.33101074]
[1743461645243,0.905,605.3,604.21,0.33101074]
[1743461645541,0.59171716,605.29,604.21,0.33101074]
[1743461645743,0.30392001,605.28,604.21,0.33101074]
[1743461646343,0.30392006,605.27,604.21,0.33101074]
[1743461646538,0.28780072,605.27,604.21,0.33101074]
[1743461646744,0.30392006,605.26,604.21,0.33101074]
[1743461647841,0.28780072,605.27,604.21,0.33101074]
[1743461648038,0.30390054,605.26,604.21,0.33101074]
[1743461649647,0.59171554,605.25,604.21,0.33101074]
[1743461649845,0.30390054,605.24,604.21,0.33101074]
[1743461652751,0.3039112,605.23,604.21,0.33101074]
[1743461653047,0.3039112,605.22,604.21,0.33101074]
[1743461653252,0.287815,605.25,604.21,0.33101074]
[1743461655159,0.30388377,605.24,604.21,0.33101074]
[1743461656457,0.287815,605.25,604.21,0.33101074]
[1743461657253,0.3038856,605.24,604.21,0.33101074]
[1743461657662,0.287815,605.25,604.21,0.33101074]
[1743461657959,0.30388651,605.24,604.21,0.33101074]
[1743461658661,0.905,605.3,604.21,0.33101074]
[1743461658857,0.28779953,605.23,604.21,0.33101074]
[1743461661367,0.905,605.3,604.21,0.33101074]
[1743461661566,0.30388435,605.29,604.21,0.33101074]
[1743461661965,0.59167555,605.29,604.21,0.33101074]
[1743461662163,0.30388435,605.28,604.21,0.33101074]
[1743461664669,0.30388435,605.27,604.21,0.33101074]
[1743461664967,0.30388435,605.26,604.21,0.33101074]
[1743461667269,0.905,605.3,604.21,0.33101074]
[1743461667469,0.30393382,605.29,604.21,0.33101074]
[1743461667670,0.28783762,605.25,604.21,0.33101074]
[1743461667870,0.30393382,605.24,604.21,0.33101074]
[1743461670467,0.905,605.3,604.21,0.33101074]
[1743461670669,0.28782334,605.23,604.21,0.33101074]
[1743461670871,0.30392549,605.22,604.21,0.33101074]
[1743461672070,0.28782334,605.23,604.21,0.33101074]
[1743461672270,0.30392392,605.22,604.21,0.33101074]
[1743461673472,0.30392392,605.21,604.21,0.33101074]
[1743461673774,0.30392806,605.2,604.21,0.33101074]
[1743461674574,0.28779834,605.21,604.21,0.33101074]
[1743461675474,0.30392744,605.2,604.21,0.33101074]
[1743461675673,0.28779834,605.21,604.21,0.33101074]
[1743461676275,0.905,605.3,604.21,0.33101074]
[1743461676474,0.3039232,605.29,604.21,0.33101074]
[1743461676871,0.28784595,605.29,604.21,0.33101074]
[1743461677073,0.30392271,605.28,604.21,0.33101074]
[1743461679676,0.30392271,605.27,604.21,0.33101074]
[1743461679877,0.30392271,605.26,604.21,0.33101074]
[1743461680877,0.28784119,605.27,604.21,0.33101074]
[1743461682278,0.95,605.26,604.21,0.33101074]
[1743461682676,1.23779477,605.26,604.21,0.33101074]
[1743461683780,0.30395988,605.25,604.21,0.33101074]
[1743461685780,0.28790072,605.24,604.21,0.33101074]
[1743461686082,0.30395988,605.23,604.21,0.33101074]
[1743461688584,0.28790072,605.22,604.21,0.33101074]
[1743461690284,0.30396674,605.21,604.21,0.33101074]
[1743461691584,0.30396674,605.25,604.21,0.33101074]
[1743461691789,0.28789834,605.2,604.21,0.33101074]
[1743461691988,0.30396674,605.19,604.21,0.33101074]
[1743461693185,0.30396174,605.18,604.21,0.33101074]
[1743461693389,0.30396174,605.19,604.21,0.33101074]
[1743461693588,0.30396174,605.18,604.21,0.33101074]
[1743461693787,0.30396174,605.17,604.21,0.33101074]
[1743461693990,0.30396174,605.19,604.21,0.33101074]
[1743461694192,0.30396174,605.18,604.21,0.33101074]
[1743461694389,0.30396174,605.19,604.21,0.33101074]
[1743461694587,0.30396174,605.18,604.21,0.33101074]
[1743461694789,0.30396634,605.17,604.21,0.33101074]
[1743461697595,0.30396634,605.16,604.21,0.33101074]
[1743461697794,0.28785905,605.16,604.21,0.33101074]
[1743461697993,0.30396634,605.15,604.21,0.33101074]
[1743461699591,0.30396054,605.14,604.21,0.33101074]
[1743461699894,0.30396054,605.13,604.21,0.33101074]
[1743461700091,0.30396054,605.12,604.21,0.33101074]
[1743461700296,0.30396054,605.11,604.21,0.33101074]
[1743461700493,0.30396054,605.25,604.21,0.33101074]
[1743461700694,0.30396054,605.24,604.21,0.33101074]
[1743461700890,0.28786143,605.1,604.21,0.33101074]
[1743461701091,0.30397453,605.09,604.21,0.33101074]
[1743461701292,0.30397453,605.25,604.21,0.33101074]
[1743461701490,0.28785429,605.09,604.21,0.33101074]
[1743461701691,0.30397453,605.08,604.21,0.33101074]
[1743461701894,0.30397453,605.25,604.21,0.33101074]
[1743461702090,0.95,605.26,604.21,0.33101074]
[1743461702091,0.28785429,605.08,604.21,0.33101074]
[1743461702290,0.30397453,605.07,604.21,0.33101074]
[1743461702491,0.30397453,605.25,604.21,0.33101074]
[1743461702695,0.28785071,605.07,604.21,0.33101074]
[1743461702899,0.30397453,605.06,604.21,0.33101074]
[1743461703196,0.30397453,605.05,604.21,0.33101074]
[1743461703392,0.28784357,605.05,604.21,0.33101074]
[1743461705299,0.30396482,605.04,604.21,0.33101074]
[1743461705695,0.28784357,605.05,604.21,0.33101074]
[1743461706297,2.51031067,605.68,604.21,0.33101074]
[1743461706498,0.63417292,605.67,604.21,0.33101074]
[1743461706695,0.2877912,605.04,604.21,0.33101074]
[1743461706896,0.63417837,605.66,604.21,0.33101074]
[1743461706897,0.33021827,605.66,604.21,0.33101074]
[1743461707299,0.28779239,605.03,604.21,0.33101074]
[1743461707499,0.819,605.65,604.21,0.33101074]
[1743461707701,0.63419076,605.64,604.21,0.33101074]
[1743461707901,0.28779001,605.02,604.21,0.33101074]
[1743461708102,0.33022917,605.64,604.21,0.33101074]
[1743461708402,0.28778882,605.01,604.21,0.33101074]
[1743461708802,0.33022917,605.64,604.21,0.33101074]
[1743461708803,2.84053984,605.64,604.21,0.33101074]
[1743461708995,0.28778644,605.0,604.21,0.33101074]
[1743461709397,3.94760157,605.64,604.21,0.33101074]
[1743461709596,0.28780191,604.99,604.21,0.33101074]
[1743461710002,1.10706173,605.63,604.21,0.33101074]
[1743461710203,0.28779834,604.98,604.21,0.33101074]
[1743461710605,2.51031067,605.58,604.21,0.33101074]
[1743461710905,0.28779715,604.97,604.21,0.33101074]
[1743461711105,0.33026735,605.57,604.21,0.33101074]
[1743461711405,0.28780072,604.96,604.21,0.33101074]
[1743461711800,1.43732908,605.57,604.21,0.33101074]
[1743461712002,0.28779715,604.96,604.21,0.33101074]
[1743461712406,0.33026735,605.57,604.21,0.33101074]
[1743461712602,0.28779358,604.96,604.21,0.33101074]
[1743461712910,2.51031067,605.54,604.21,0.33101074]
[1743461713209,0.28780191,604.96,604.21,0.33101074]
[1743461713607,0.33028916,605.53,604.21,0.33101074]
[1743461713804,0.28780191,604.96,604.21,0.33101074]
[1743461714211,0.33028916,605.53,604.21,0.33101074]
[1743461714413,0.28779834,604.96,604.21,0.33101074]
[1743461714805,0.33028916,605.53,604.21,0.33101074]
[1743461715005,0.30395973,605.52,604.21,0.33101074]
[1743461715203,0.28781381,604.96,604.21,0.33101074]
[1743461715405,0.33030007,605.51,604.21,0.33101074]
[1743461715609,0.30395973,605.5,604.21,0.33101074]
[1743461715808,0.28781262,604.96,604.21,0.33101074]
[1743461716005,0.33030007,605.51,604.21,0.33101074]
[1743461716207,0.30395865,605.5,604.21,0.33101074]
[1743461716405,0.28781143,604.96,604.21,0.33101074]
[1743461716605,0.33030007,605.51,604.21,0.33101074]
[1743461716807,0.30395865,605.5,604.21,0.33101074]
[1743461717004,0.28780786,604.96,604.21,0.33101074]
[1743461717207,0.33030007,605.51,604.21,0.33101074]
[1743461717410,0.30395865,605.5,604.21,0.33101074]
[1743461717610,0.28780429,604.96,604.21,0.33101074]
[1743461717805,0.33030007,605.51,604.21,0.33101074]
[1743461718109,0.28780072,604.96,604.21,0.33101074]
[1743461718511,0.33030007,605.51,604.21,0.33101074]
[1743461718710,0.28779715,604.96,604.21,0.33101074]
[1743461719107,0.33030007,605.51,604.21,0.33101074]
[1743461719305,0.28779358,604.96,604.21,0.33101074]
[1743461719704,0.33030007,605.51,604.21,0.33101074]
[1743461719905,0.28781024,604.96,604.21,0.33101074]
[1743461720306,0.33030007,605.51,604.21,0.33101074]
[1743461720509,0.28780667,604.96,604.21,0.33101074]
[1743461720913,0.33030007,605.51,604.21,0.33101074]
[1743461721114,0.28780072,604.96,604.21,0.33101074]
[1743461721614,0.33030007,605.51,604.21,0.33101074]
[1743461721914,0.28779715,604.96,604.21,0.33101074]
[1743461722108,0.33030007,605.51,604.21,0.33101074]
[1743461722311,0.28779596,604.96,604.21,0.33101074]
[1743461722712,0.33030007,605.51,604.21,0.33101074]
[1743461722915,0.2877912,604.96,604.21,0.33101074]
[1743461723215,0.33030007,605.51,604.21,0.33101074]
[1743461723418,0.30396128,605.5,604.21,0.33101074]
[1743461723618,0.28779001,604.96,604.21,0.33101074]
[1743461723818,2.51031067,605.5,604.21,0.33101074]
[1743461724018,0.30396128,605.49,604.21,0.33101074]
[1743461724318,0.28778763,604.96,604.21,0.33101074]
[1743461724519,2.51031067,605.5,604.21,0.33101074]
[1743461724714,0.28778525,604.96,604.21,0.33101074]
[1743461725113,2.51031067,605.5,604.21,0.33101074]
[1743461725317,0.2877793,604.96,604.21,0.33101074]
[1743461725721,2.51031067,605.5,604.21,0.33101074]
[1743461725922,0.28777573,604.96,604.21,0.33101074]
[1743461726315,3.6173724,605.5,604.21,0.33101074]
[1743461726519,0.28777216,604.96,604.21,0.33101074]
[1743461726922,2.51031067,605.49,604.21,0.33101074]
[1743461727124,0.28776859,604.96,604.21,0.33101074]
[1743461727518,3.6173724,605.49,604.21,0.33101074]
[1743461727824,0.28779953,604.96,604.21,0.33101074]
[1743461728024,2.51031067,605.5,604.21,0.33101074]
[1743461728225,0.30396118,605.49,604.21,0.33101074]
[1743461728425,0.28779834,604.96,604.21,0.33101074]
[1743461728625,2.51031067,605.5,604.21,0.33101074]
[1743461728826,0.30396206,605.49,604.21,0.33101074]
[1743461729027,0.28779477,604.96,604.21,0.33101074]
[1743461729222,3.6173724,605.5,604.21,0.33101074]
[1743461729422,0.30396337,605.49,604.21,0.33101074]
[1743461729622,0.2877912,604.96,604.21,0.33101074]
[1743461729828,2.51031067,605.5,604.21,0.33101074]
[1743461730126,0.28778763,604.96,604.21,0.33101074]
[1743461730527,2.51031067,605.49,604.21,0.33101074]
[1743461730727,0.28778287,604.96,604.21,0.33101074]
[1743461731127,2.51031067,605.49,604.21,0.33101074]
[1743461731329,0.2877793,604.96,604.21,0.33101074]
[1743461731727,2.51031067,605.49,604.21,0.33101074]
[1743461731926,0.28780191,604.96,604.21,0.33101074]
[1743461732328,2.51031067,605.49,604.21,0.33101074]
[1743461732628,0.2878031,604.96,604.21,0.33101074]
[1743461732828,2.51031067,605.49,604.21,0.33101074]
[1743461733030,0.30396289,605.48,604.21,0.33101074]
[1743461733224,0.28780429,604.96,604.21,0.33101074]
[1743461733425,2.51031067,605.49,604.21,0.33101074]
[1743461733623,0.30396206,605.48,604.21,0.33101074]
[1743461733824,0.28780429,604.96,604.21,0.33101074]
[1743461734027,0.33030007,605.51,604.21,0.33101074]
[1743461734225,0.30396233,605.5,604.21,0.33101074]
[1743461734431,0.28780905,604.96,604.21,0.33101074]
[1743461734630,0.33030007,605.51,604.21,0.33101074]
[1743461734831,0.30396453,605.5,604.21,0.33101074]
[1743461735030,0.28781738,604.96,604.21,0.33101074]
[1743461735232,0.33030007,605.51,604.21,0.33101074]
[1743461735531,0.287815,604.96,604.21,0.33101074]
[1743461735931,0.33030007,605.51,604.21,0.33101074]
[1743461736133,0.28780905,604.96,604.21,0.33101074]
[1743461736533,0.33030007,605.51,604.21,0.33101074]
[1743461736733,0.28780548,604.96,604.21,0.33101074]
[1743461737033,0.33030007,605.51,604.21,0.33101074]
[1743461737234,0.30396233,605.5,604.21,0.33101074]
[1743461737435,0.28780429,604.96,604.21,0.33101074]
[1743461737633,0.33030007,605.51,604.21,0.33101074]
[1743461737934,0.28781977,604.96,604.21,0.33101074]
[1743461738328,0.33030007,605.51,604.21,0.33101074]
[1743461738528,0.28781381,604.96,604.21,0.33101074]
[1743461738933,0.33030007,605.51,604.21,0.33101074]
[1743461739134,0.28781024,604.96,604.21,0.33101074]
[1743461739528,0.33030007,605.51,604.21,0.33101074]
[1743461739731,0.28780667,604.96,604.21,0.33101074]
[1743461740128,0.33030007,605.51,604.21,0.33101074]
[1743461740334,0.2878031,604.96,604.21,0.33101074]
[1743461740729,0.33030007,605.51,604.21,0.33101074]
[1743461741031,0.28779953,604.96,604.21,0.33101074]
[1743461741231,0.33030007,605.51,604.22,1.84478765]
[1743461741437,0.30396233,605.5,604.23,1.84478765]
[1743461741635,0.28779834,604.96,604.24,1.84478765]
[1743461741934,0.33030007,605.51,604.25,1.84478765]
[1743461742135,0.28776502,604.96,604.26,1.84478765]
[1743461742332,0.28776502,604.96,604.22,1.84478765]
[1743461742636,2.51031067,605.49,604.23,1.84478765]
[1743461742837,0.28776502,604.96,604.24,1.84478765]
[1743461743131,2.51031067,605.49,604.25,1.84478765]
[1743461743332,0.28776621,604.96,604.26,1.84478765]
[1743461743534,0.28776621,604.96,604.22,1.84478765]
[1743461743731,2.51031067,605.49,604.23,1.84478765]
[1743461743931,0.2877674,604.96,604.24,1.84478765]
[1743461744133,0.2877674,604.96,604.25,1.84478765]
[1743461744332,2.51031067,605.48,604.26,1.84478765]
[1743461744535,0.28776502,604.96,604.22,1.84478765]
[1743461744737,0.28776502,604.96,604.23,1.84478765]
[1743461744935,2.51031067,605.48,604.24,1.84478765]
[1743461745135,0.2877674,604.96,604.25,1.84478765]
[1743461745338,0.2877674,604.96,604.26,1.84478765]
[1743461745638,2.51031067,605.48,604.27,1.84478765]
[1743461745834,0.28775908,605.0,604.22,1.84478765]
[1743461746033,2.51031067,605.48,604.23,1.84478765]
[1743461746233,0.30396035,605.47,604.24,1.84478765]
[1743461746436,0.28776384,605.0,604.21,0.33101074]
[1743461746634,2.51031067,605.48,604.21,0.33101074]
[1743461746839,0.30396007,605.47,604.21,0.33101074]
[1743461747040,0.28780072,605.0,604.21,0.33101074]
[1743461747338,0.33030007,605.51,604.21,0.33101074]
[1743461747539,0.28780191,604.99,604.21,0.33101074]
[1743461748041,0.33030007,605.51,604.21,0.33101074]
[1743461748237,0.28779239,604.98,604.21,0.33101074]
[1743461748440,0.33030007,605.51,604.21,0.33101074]
[1743461748640,0.30396059,605.5,604.21,0.33101074]
[1743461748840,0.2877912,604.97,604.21,0.33101074]
[1743461749042,0.33030007,605.51,604.21,0.33101074]
[1743461749238,0.3039614,605.5,604.21,0.33101074]
[1743461749437,0.2877793,605.0,604.21,0.33101074]
[1743461749642,0.33030007,605.51,604.21,0.33101074]
[1743461749841,0.3039589,605.5,604.21,0.33101074]
[1743461750042,0.28777573,605.0,604.21,0.33101074]
[1743461750235,0.33030007,605.51,604.21,0.33101074]
[1743461750439,0.30396239,605.5,604.21,0.33101074]
[1743461750636,0.28777216,605.0,604.21,0.33101074]
[1743461750941,0.33030007,605.51,604.21,0.33101074]
[1743461751137,0.30395875,605.5,604.21,0.33101074]
[1743461751342,0.28776859,605.0,604.21,0.33101074]
[1743461751541,0.33030007,605.51,604.21,0.33101074]
[1743461751735,0.30396267,605.5,604.21,0.33101074]
[1743461751939,0.28779715,605.0,604.21,0.33101074]
[1743461752137,0.33030007,605.51,604.21,0.33101074]
[1743461752339,0.30396239,605.5,604.21,0.33101074]
[1743461752538,0.28779358,605.0,604.21,0.33101074]
[1743461752738,0.33030007,605.51,604.21,0.33101074]
[1743461752936,0.30396239,605.5,604.21,0.33101074]
[1743461753136,0.28779001,605.0,604.21,0.33101074]
[1743461753337,0.33030007,605.51,604.21,0.33101074]
[1743461753542,0.30396262,605.5,604.21,0.33101074]
[1743461753837,0.28778644,605.0,604.21,0.33101074]
[1743461754037,0.33030007,605.51,604.21,0.33101074]
[1743461754242,0.28778287,605.0,604.21,0.33101074]
[1743461754537,0.33030007,605.51,604.21,0.33101074]
[1743461754741,0.30396267,605.5,604.21,0.33101074]
[1743461754939,0.2877793,605.0,604.21,0.33101074]
[1743461755137,0.33030007,605.51,604.21,0.33101074]
[1743461755336,0.30396239,605.5,604.21,0.33101074]
[1743461755534,0.28779715,605.0,604.21,0.33101074]
[1743461755742,0.33030007,605.51,604.21,0.33101074]
[1743461755934,0.30396239,605.5,604.21,0.33101074]
[1743461756137,0.28779358,605.0,604.21,0.33101074]
[1743461756340,0.33030007,605.51,604.21,0.33101074]
[1743461756539,0.30396239,605.5,604.21,0.33101074]
[1743461756741,0.33030007,605.51,604.21,0.33101074]
[1743461756742,0.28779001,605.0,604.21,0.33101074]
[1743461756942,0.33030007,605.51,604.21,0.33101074]
[1743461757142,0.30396241,605.5,604.21,0.33101074]
[1743461757342,0.28778644,604.99,604.21,0.33101074]
[1743461757638,0.33030007,605.51,604.21,0.33101074]
[1743461757842,0.28778287,604.98,604.21,0.33101074]
[1743461758236,0.33030007,605.51,604.21,0.33101074]
[1743461758439,0.28777692,604.97,604.21,0.33101074]
[1743461758640,0.33030007,605.51,604.21,0.33101074]
[1743461758836,0.30396288,605.5,604.21,0.33101074]
[1743461759035,0.30396288,605.49,604.21,0.33101074]
[1743461759237,0.30396288,605.48,604.21,0.33101074]
[1743461759434,0.30396288,605.47,604.21,0.33101074]
[1743461759639,0.30396288,605.46,604.21,0.33101074]
[1743461759841,0.30396288,605.45,604.21,0.33101074]
[1743461760136,0.30396288,605.44,604.21,0.33101074]
[1743461760340,0.30396784,605.43,604.21,0.33101074]
[1743461760540,0.30396784,605.42,604.21,0.33101074]
[1743461760741,0.30396784,605.41,604.21,0.33101074]
[1743461760941,0.30396784,605.4,604.21,0.33101074]
[1743461761142,0.30396784,605.39,604.21,0.33101074]
[1743461761340,0.30396784,605.38,604.21,0.33101074]
[1743461761537,0.30396784,605.37,604.21,0.33101074]
[1743461761741,0.30396784,605.36,604.21,0.33101074]
[1743461761943,0.30396784,605.35,604.21,0.33101074]
[1743461762137,0.30396784,605.34,604.21,0.33101074]
[1743461762342,0.30396784,605.5,604.22,2.68119227]
[1743461762643,0.30396784,605.49,604.23,0.33099978]
[1743461762844,0.30396784,605.48,604.23,0.33099978]
[1743461763043,0.30396784,605.47,604.23,0.33099978]
[1743461763245,0.30396784,605.46,604.23,0.33099978]
[1743461763445,0.30396784,605.45,604.23,0.33099978]
[1743461763646,0.30396784,605.44,604.23,0.33099978]
[1743461763944,0.30396784,605.43,604.24,1.84478765]
[1743461764148,0.30396784,605.42,604.25,2.17577647]
[1743461764444,0.30396784,605.41,604.25,2.17577647]
[1743461764743,0.30396784,605.4,604.25,2.17577647]
[1743461764947,0.30396784,605.39,604.26,1.84478765]
[1743461765144,0.30396784,605.38,604.27,2.68119227]
[1743461765345,0.30396784,605.37,604.27,2.68119227]
[1743461765541,0.30396784,605.36,604.27,2.68119227]
[1743461765746,0.30396784,605.35,604.27,2.68119227]
[1743461765946,0.30396784,605.34,604.27,2.68119227]
[1743461766139,0.30396784,605.33,604.27,2.68119227]
[1743461766342,0.30396587,605.32,604.27,2.68119227]
[1743461766545,0.30396587,605.31,604.27,2.68119227]
[1743461766747,0.30396587,605.3,604.28,2.68119227]
[1743461766947,0.30396587,605.47,604.28,2.68119227]
[1743461767147,0.30396587,605.46,604.28,2.68119227]
[1743461767447,0.30396587,605.45,604.28,2.68119227]
[1743461767650,0.30396587,605.44,604.28,2.68119227]
[1743461767942,0.30395756,605.43,604.28,2.68119227]
[1743461768144,0.30395756,605.42,604.29,0.33096691]
[1743461768347,0.30395756,605.41,604.3,2.68119227]
[1743461768545,0.30395756,605.4,604.31,0.33095596]
[1743461768744,0.30395756,605.39,604.31,0.33095596]
[1743461769047,0.30395756,605.38,604.31,0.33095596]
[1743461769248,0.30395756,605.5,604.31,0.33095596]
[1743461769548,0.30393572,605.49,604.31,0.33095596]
[1743461769848,0.30393572,605.48,604.31,0.33095596]
[1743461770043,0.30393572,605.47,604.31,0.33095596]
[1743461770249,0.30393572,605.46,604.31,0.33095596]
[1743461770454,0.30393572,605.45,604.31,0.33095596]
[1743461770650,0.30393572,605.44,604.31,0.33095596]
[1743461770951,0.30393572,605.43,604.31,0.33095596]
[1743461771152,0.30393572,605.42,604.31,0.33095596]
[1743461771351,0.30393572,605.41,604.31,0.33095596]
[1743461771551,0.30393572,605.4,604.31,0.33095596]
[1743461771851,0.30393572,605.39,604.31,0.33095596]
[1743461772053,0.30393572,605.47,604.31,0.33095596]
[1743461772252,0.30393572,605.46,604.31,0.33095596]
[1743461772446,0.30393572,605.45,604.31,0.33095596]
[1743461772650,0.30393572,605.44,604.31,0.33095596]
[1743461772851,0.30393572,605.43,604.31,0.33095596]
[1743461773048,0.30393572,605.42,604.31,0.33095596]
[1743461773250,0.30393572,605.41,604.31,0.33095596]
[1743461773453,0.30393572,605.47,604.31,0.33095596]
[1743461773649,0.30393572,605.46,604.31,0.33095596]
[1743461773853,0.30393572,605.47,604.31,0.33095596]
[1743461774051,0.30393572,605.46,604.31,0.33095596]
[1743461774252,0.30393572,605.47,604.31,0.33095596]
[1743461776056,0.30392995,605.46,604.31,0.33095596]
[1743461776253,0.30392995,605.47,604.31,0.33095596]
[1743461776453,0.30392995,605.46,604.31,0.33095596]
[1743461776650,0.30392995,605.47,604.31,0.33095596]
[1743461776951,0.30392995,605.46,604.31,0.33095596]
[1743461777150,0.30392995,605.47,604.31,0.33095596]
[1743461777455,0.30392995,605.46,604.31,0.33095596]
[1743461777650,0.30392995,605.47,604.31,0.33095596]
[1743461777853,0.30392995,605.46,604.31,0.33095596]
[1743461778050,0.30392995,605.47,604.31,0.33095596]
[1743461778255,0.30392995,605.46,604.31,0.33095596]
[1743461778457,0.30392995,605.47,604.31,0.33095596]
[1743461778757,0.30392995,605.46,604.31,0.33095596]
[1743461778957,0.30392995,605.45,604.31,0.33095596]
[1743461779152,0.30392995,605.47,604.31,0.33095596]
[1743461779357,0.30392995,605.46,604.31,0.33095596]
[1743461779557,0.2878031,605.46,604.31,0.33095596]
[1743461779757,0.30392995,605.45,604.31,0.33095596]
[1743461781558,0.758,605.48,604.31,0.33095596]
[1743461781559,0.30392995,605.47,604.31,0.33095596]
[1743461781859,0.2878031,605.44,604.31,0.33095596]
[1743461782056,0.30392995,605.43,604.31,0.33095596]
[1743461782459,0.2878031,605.44,604.31,0.33095596]
[1743461782759,0.30392873,605.43,604.31,0.33095596]
[1743461784664,0.59172469,605.42,604.31,0.33095596]
[1743461784968,0.30392873,605.41,604.31,0.33095596]
[1743461785159,0.30392873,605.4,604.31,0.33095596]
[1743461785366,0.30392873,605.39,604.31,0.33095596]
[1743461785666,0.30392873,605.38,604.31,0.33095596]
[1743461785867,0.30392873,605.41,604.31,0.33095596]
[1743461786067,0.30392873,605.4,604.32,2.68119227]
[1743461786259,0.30392873,605.39,604.32,2.68119227]
[1743461786565,0.30392873,605.38,604.32,3.01214275]
[1743461786758,0.30392873,605.41,604.32,3.01214275]
[1743461786962,0.30392873,605.4,604.32,3.01214275]
[1743461787162,0.30392873,605.39,604.33,2.68119227]
[1743461787465,0.30392807,605.38,604.33,3.01213728]
[1743461787765,0.30392807,605.37,604.34,0.33093953]
[1743461790662,0.758,605.48,604.34,0.33093953]
[1743461790863,0.28775551,605.36,604.34,0.33093953]
[1743461791067,0.30389079,605.35,604.34,0.33093953]
[1743461791571,0.30389079,605.34,604.34,0.33093953]
[1743461792071,0.2877448,605.35,604.34,0.33093953]
[1743461793474,0.30389051,605.34,604.34,0.33093953]
[1743461793773,0.28779715,605.34,604.34,0.33093953]
[1743461794975,0.30389095,605.33,604.34,0.33093953]
[1743461795768,0.28779715,605.34,604.34,0.33093953]
[1743461795974,0.30389079,605.33,604.34,0.33093953]
[1743461796576,0.33030007,605.51,604.34,0.33093953]
[1743461796775,0.30389107,605.5,604.34,0.33093953]
[1743461796976,0.28779477,605.32,604.34,0.33093953]
[1743461797278,0.33030007,605.51,604.34,0.33093953]
[1743461797473,0.28779715,605.31,604.34,0.33093953]
[1743461797975,0.33030007,605.51,604.34,0.33093953]
[1743461798173,0.28779715,605.3,604.34,0.33093953]
[1743461798374,0.33030007,605.51,604.34,0.33093953]
[1743461798571,1.087,605.29,604.34,0.33093953]
[1743461798776,1.37479596,605.29,604.34,0.33093953]
[1743461799776,0.30391458,605.28,604.34,0.33093953]
[1743461802883,0.28782334,605.27,604.34,0.33093953]
[1743461803079,0.30391458,605.26,604.34,0.33093953]
[1743461805583,0.30391458,605.28,604.34,0.33093953]
[1743461805784,0.28782929,605.25,604.34,0.33093953]